[Event "*** Qualifier 4: Titled Tuesday 3|2 Blitz"]
[Site "Chess.com"]
[Date "2017.04.25"]
[Round "6"]
[White "igorkovalenko"]
[Black "Aygehovit1992"]
[Result "0-1"]
[WhiteElo "2634"]
[BlackElo "2498"]
[TimeControl "180+2"]
[EndTime "14:17:16 PDT"]
[Termination "Aygehovit1992 won by resignation"]

1. c4 {[%clk 0:03:02]} 1... e5 {[%clk 0:02:59.8]} 2. Nc3 {[%clk 0:03:02.9]} 2...
Nc6 {[%clk 0:03:01]} 3. g3 {[%clk 0:03:02.9]} 3... g6 {[%clk 0:03:02.5]} 4. Bg2
{[%clk 0:03:04.1]} 4... Bg7 {[%clk 0:03:04.1]} 5. Rb1 {[%clk 0:03:05.9]} 5... a5
{[%clk 0:03:04.6]} 6. Qa4 {[%clk 0:03:07.2]} 6... Nge7 {[%clk 0:03:04.4]} 7. b4
{[%clk 0:03:08]} 7... O-O {[%clk 0:03:02.2]} 8. b5 {[%clk 0:03:09.3]} 8... Nd4
{[%clk 0:03:02.4]} 9. Ba3 {[%clk 0:03:06.7]} 9... d6 {[%clk 0:03:01.3]} 10. e3
{[%clk 0:03:06.4]} 10... Bf5 {[%clk 0:03:00.6]} 11. Rc1 {[%clk 0:03:06.8]} 11...
Re8 {[%clk 0:02:56.8]} 12. Nd5 {[%clk 0:02:28.4]} 12... c6 {[%clk 0:02:35.3]}
13. Nxe7+ {[%clk 0:02:29.1]} 13... Qxe7 {[%clk 0:02:35]} 14. bxc6 {[%clk
0:02:28.5]} 14... bxc6 {[%clk 0:02:21.3]} 15. Ne2 {[%clk 0:02:13.2]} 15... Nxe2
{[%clk 0:02:10.4]} 16. Kxe2 {[%clk 0:02:15.1]} 16... Bg4+ {[%clk 0:01:55.5]} 17.
f3 {[%clk 0:02:16.1]} 17... Bd7 {[%clk 0:01:56]} 18. Rb1 {[%clk 0:02:15.1]}
18... c5 {[%clk 0:01:23.6]} 19. Qc2 {[%clk 0:02:15.9]} 19... Bf5 {[%clk
0:01:18]} 20. d3 {[%clk 0:02:15.8]} 20... Be6 {[%clk 0:01:19.6]} 21. Rb6 {[%clk
0:02:13]} 21... f5 {[%clk 0:01:18.2]} 22. Rhb1 {[%clk 0:02:13.6]} 22... Ra7
{[%clk 0:01:13.2]} 23. Bc1 {[%clk 0:02:14.4]} 23... a4 {[%clk 0:01:07.1]} 24.
Bd2 {[%clk 0:02:11.8]} 24... h5 {[%clk 0:01:00.3]} 25. Rb8 {[%clk 0:02:11.9]}
25... Rxb8 {[%clk 0:00:58.6]} 26. Rxb8+ {[%clk 0:02:13.8]} 26... Kh7 {[%clk
0:01:00.1]} 27. Qb1 {[%clk 0:02:14.2]} 27... d5 {[%clk 0:00:44]} 28. cxd5 {[%clk
0:02:10.2]} 28... Bxd5 {[%clk 0:00:45.9]} 29. a3 {[%clk 0:02:03.8]} 29... c4
{[%clk 0:00:46.7]} 30. Bb4 {[%clk 0:01:51.6]} 30... Qc7 {[%clk 0:00:37.5]} 31.
Re8 {[%clk 0:01:10.1]} 31... cxd3+ {[%clk 0:00:37.4]} 32. Kd2 {[%clk 0:01:11.3]}
32... e4 {[%clk 0:00:26.3]} 33. fxe4 {[%clk 0:01:12.4]} 33... fxe4 {[%clk
0:00:24.6]} 34. Bxe4 {[%clk 0:01:12.6]} 34... Qc6 {[%clk 0:00:18.1]} 35. Bxd5
{[%clk 0:01:11.3]} 35... Qxe8 {[%clk 0:00:18.8]} 36. Qxd3 {[%clk 0:01:12.3]}
36... Rd7 {[%clk 0:00:18.9]} 37. e4 {[%clk 0:01:13.9]} 37... Bh6+ {[%clk
0:00:16.8]} 38. Ke2 {[%clk 0:01:14.9]} 38... Rc7 {[%clk 0:00:13.1]} 39. Kf3
{[%clk 0:01:11]} 39... Qc8 {[%clk 0:00:13.6]} 40. Ba5 {[%clk 0:00:47.3]} 40...
Rc2 {[%clk 0:00:13.4]} 41. Be6 {[%clk 0:00:33.9]} 41... Qf8+ {[%clk 0:00:12.1]}
42. Bf5 {[%clk 0:00:35.4]} 42... Rc1 {[%clk 0:00:04.9]} 43. Qd7+ {[%clk
0:00:31.4]} 43... Bg7 {[%clk 0:00:06.2]} 44. Bb4 {[%clk 0:00:23.3]} 44... Qf6
{[%clk 0:00:04.1]} 45. Qd2 {[%clk 0:00:20.6]} 45... Rb1 {[%clk 0:00:03.8]} 46.
Qd5 {[%clk 0:00:18.6]} 46... Rb2 {[%clk 0:00:04.9]} 47. h4 {[%clk 0:00:16.1]}
47... gxf5 {[%clk 0:00:05.5]} 48. exf5 {[%clk 0:00:18]} 48... Rb3+ {[%clk
0:00:06.7]} 49. Kg2 {[%clk 0:00:19.1]} 49... Qe5 {[%clk 0:00:07.9]} 0-1

[Event "*** Qualifier 4: Titled Tuesday 3|2 Blitz"]
[Site "Chess.com"]
[Date "2017.04.25"]
[Round "6"]
[White "Iball95"]
[Black "maciek_92"]
[Result "1/2-1/2"]
[WhiteElo "2525"]
[BlackElo "2518"]
[TimeControl "180+2"]
[EndTime "14:17:57 PDT"]
[Termination "Game drawn - insufficient material"]

1. e4 {[%clk 0:03:02]} 1... c5 {[%clk 0:03:00.6]} 2. Nf3 {[%clk 0:03:02.9]} 2...
Nc6 {[%clk 0:03:02.3]} 3. Bb5 {[%clk 0:03:02.8]} 3... g6 {[%clk 0:03:03.1]} 4.
O-O {[%clk 0:03:02]} 4... Bg7 {[%clk 0:03:04.5]} 5. Re1 {[%clk 0:03:03.1]} 5...
Nf6 {[%clk 0:03:05.8]} 6. c3 {[%clk 0:03:00.5]} 6... O-O {[%clk 0:03:06.3]} 7.
e5 {[%clk 0:03:01.4]} 7... Nd5 {[%clk 0:03:06.7]} 8. d4 {[%clk 0:03:02.7]} 8...
cxd4 {[%clk 0:03:08.6]} 9. cxd4 {[%clk 0:03:04.2]} 9... d6 {[%clk 0:03:03.3]}
10. Nc3 {[%clk 0:02:55.6]} 10... dxe5 {[%clk 0:03:00.1]} 11. Bxc6 {[%clk
0:02:52.5]} 11... bxc6 {[%clk 0:02:55.9]} 12. Nxe5 {[%clk 0:02:53.2]} 12... Bb7
{[%clk 0:02:41.6]} 13. Qa4 {[%clk 0:02:44.3]} 13... Qd6 {[%clk 0:02:32.9]} 14.
Ne4 {[%clk 0:02:36.8]} 14... Qc7 {[%clk 0:02:28.4]} 15. Nc5 {[%clk 0:02:37.2]}
15... Nb6 {[%clk 0:02:15.4]} 16. Qb3 {[%clk 0:02:34]} 16... Bc8 {[%clk
0:02:15.7]} 17. Bf4 {[%clk 0:02:25.6]} 17... Nd5 {[%clk 0:02:14.3]} 18. Bg3
{[%clk 0:02:26.6]} 18... Qb6 {[%clk 0:02:14.5]} 19. Qa3 {[%clk 0:02:07]} 19...
Bxe5 {[%clk 0:02:03.2]} 20. Bxe5 {[%clk 0:01:56]} 20... a5 {[%clk 0:02:03.6]}
21. b3 {[%clk 0:01:43.5]} 21... Qb4 {[%clk 0:01:56.4]} 22. Qb2 {[%clk
0:01:42.8]} 22... f6 {[%clk 0:01:56.9]} 23. Bg3 {[%clk 0:01:42.8]} 23... Re8
{[%clk 0:01:49.7]} 24. Rac1 {[%clk 0:01:42.2]} 24... Qb6 {[%clk 0:01:30.8]} 25.
Qd2 {[%clk 0:01:36.6]} 25... Bf5 {[%clk 0:01:21.8]} 26. h4 {[%clk 0:01:28.7]}
26... Ra7 {[%clk 0:01:17.3]} 27. Re2 {[%clk 0:01:22.1]} 27... Kg7 {[%clk
0:01:09.9]} 28. Rce1 {[%clk 0:01:17]} 28... e5 {[%clk 0:01:08.7]} 29. dxe5
{[%clk 0:01:17.9]} 29... Qxc5 {[%clk 0:01:08.3]} 30. exf6+ {[%clk 0:01:19.1]}
30... Nxf6 {[%clk 0:01:09.7]} 31. Rxe8 {[%clk 0:01:19.5]} 31... Nxe8 {[%clk
0:01:11.6]} 32. Rxe8 {[%clk 0:01:19.9]} 32... Rd7 {[%clk 0:01:05.6]} 33. Qg5
{[%clk 0:01:07.2]} 33... Kf7 {[%clk 0:00:43.9]} 34. Rh8 {[%clk 0:00:47.4]} 34...
Kg7 {[%clk 0:00:43.7]} 35. Re8 {[%clk 0:00:44.2]} 35... Kf7 {[%clk 0:00:44.8]}
36. Re5 {[%clk 0:00:36.8]} 36... Qc2 {[%clk 0:00:42.4]} 37. Rxa5 {[%clk
0:00:26.9]} 37... Qd2 {[%clk 0:00:27.9]} 38. Ra6 {[%clk 0:00:15.7]} 38... Qxg5
{[%clk 0:00:21.5]} 39. hxg5 {[%clk 0:00:17.6]} 39... Rd1+ {[%clk 0:00:22.8]} 40.
Kh2 {[%clk 0:00:18.5]} 40... Be4 {[%clk 0:00:24.7]} 41. Ra7+ {[%clk 0:00:16.8]}
41... Ke6 {[%clk 0:00:26]} 42. Rxh7 {[%clk 0:00:16.9]} 42... Rd2 {[%clk
0:00:24.6]} 43. Ra7 {[%clk 0:00:13.3]} 43... Bd5 {[%clk 0:00:25.4]} 44. Ra6
{[%clk 0:00:11.2]} 44... Kf5 {[%clk 0:00:26]} 45. Ra5 {[%clk 0:00:04.8]} 45...
Kxg5 {[%clk 0:00:22.5]} 46. b4 {[%clk 0:00:06.3]} 46... Rxa2 {[%clk 0:00:22.4]}
47. Rc5 {[%clk 0:00:06.8]} 47... Rb2 {[%clk 0:00:23.2]} 48. b5 {[%clk
0:00:02.8]} 48... Rxb5 {[%clk 0:00:23.3]} 49. Rxb5 {[%clk 0:00:04.1]} 49... cxb5
{[%clk 0:00:25.2]} 50. Bd6 {[%clk 0:00:05.5]} 50... Kf5 {[%clk 0:00:25.2]} 51.
Bb4 {[%clk 0:00:06.6]} 51... Kf4 {[%clk 0:00:24.6]} 52. f3 {[%clk 0:00:06.8]}
52... Be6 {[%clk 0:00:23]} 53. Kg1 {[%clk 0:00:08.1]} 53... Ke3 {[%clk
0:00:23.7]} 54. Kh2 {[%clk 0:00:08.2]} 54... Kd3 {[%clk 0:00:23.1]} 55. Kg3
{[%clk 0:00:09.7]} 55... Kc4 {[%clk 0:00:22]} 56. Ba3 {[%clk 0:00:09]} 56... b4
{[%clk 0:00:23.4]} 57. Bb2 {[%clk 0:00:10.4]} 57... Kb3 {[%clk 0:00:23.3]} 58.
Be5 {[%clk 0:00:12]} 58... Kc2 {[%clk 0:00:24.1]} 59. Kf4 {[%clk 0:00:13.5]}
59... b3 {[%clk 0:00:25.7]} 60. Kg5 {[%clk 0:00:14.8]} 60... Bf5 {[%clk
0:00:19]} 61. g4 {[%clk 0:00:15.5]} 61... Bd3 {[%clk 0:00:20.2]} 62. f4 {[%clk
0:00:16.7]} 62... b2 {[%clk 0:00:20.7]} 63. Bxb2 {[%clk 0:00:17.7]} 63... Kxb2
{[%clk 0:00:22.6]} 64. f5 {[%clk 0:00:18.9]} 64... Bxf5 {[%clk 0:00:24]} 65.
gxf5 {[%clk 0:00:20.8]} 65... gxf5 {[%clk 0:00:25.9]} 66. Kxf5 {[%clk
0:00:22.7]} 1/2-1/2

[Event "*** Qualifier 4: Titled Tuesday 3|2 Blitz"]
[Site "Chess.com"]
[Date "2017.04.25"]
[Round "6"]
[White "silverback96"]
[Black "Sanan_Sjugirov"]
[Result "1-0"]
[WhiteElo "2068"]
[BlackElo "2615"]
[TimeControl "180+2"]
[EndTime "14:17:57 PDT"]
[Termination "silverback96 won by resignation"]

1. d4 {[%clk 0:03:02]} 1... Nf6 {[%clk 0:03:00.7]} 2. c4 {[%clk 0:03:03.5]} 2...
e6 {[%clk 0:03:02.1]} 3. g3 {[%clk 0:03:04.9]} 3... d5 {[%clk 0:03:02.8]} 4. Nf3
{[%clk 0:03:06.2]} 4... Bb4+ {[%clk 0:03:04.3]} 5. Bd2 {[%clk 0:03:06.9]} 5...
Be7 {[%clk 0:03:05.9]} 6. Bg2 {[%clk 0:03:08.5]} 6... O-O {[%clk 0:03:07.4]} 7.
O-O {[%clk 0:03:10.1]} 7... c6 {[%clk 0:03:09]} 8. Nc3 {[%clk 0:03:11.1]} 8...
dxc4 {[%clk 0:03:09.9]} 9. Bf4 {[%clk 0:03:12.4]} 9... Nbd7 {[%clk 0:03:09.9]}
10. e4 {[%clk 0:03:13.5]} 10... Re8 {[%clk 0:03:07.8]} 11. a4 {[%clk 0:03:13.9]}
11... b6 {[%clk 0:03:08.9]} 12. h4 {[%clk 0:03:09.4]} 12... Bb7 {[%clk 0:03:00]}
13. Qe2 {[%clk 0:03:05.4]} 13... a5 {[%clk 0:03:00.5]} 14. Ng5 {[%clk
0:02:58.8]} 14... h6 {[%clk 0:02:56.2]} 15. Nf3 {[%clk 0:02:59.8]} 15... Bb4
{[%clk 0:02:55]} 16. Rfd1 {[%clk 0:02:56.4]} 16... Ba6 {[%clk 0:02:50.6]} 17.
Qe3 {[%clk 0:02:48.6]} 17... Rc8 {[%clk 0:02:49.2]} 18. Bh3 {[%clk 0:02:31]}
18... Qe7 {[%clk 0:02:46.4]} 19. g4 {[%clk 0:02:21.2]} 19... Nh7 {[%clk
0:02:35.6]} 20. g5 {[%clk 0:02:19.2]} 20... hxg5 {[%clk 0:02:23.5]} 21. hxg5
{[%clk 0:02:21.1]} 21... Nhf8 {[%clk 0:02:18.5]} 22. e5 {[%clk 0:02:19.2]} 22...
Bxc3 {[%clk 0:02:06.9]} 23. bxc3 {[%clk 0:02:19.5]} 23... Ng6 {[%clk 0:02:07.6]}
24. Bg3 {[%clk 0:02:18.2]} 24... Bb7 {[%clk 0:02:03.2]} 25. Nd2 {[%clk
0:02:01.8]} 25... c5 {[%clk 0:01:39.2]} 26. Nxc4 {[%clk 0:01:58.7]} 26... Red8
{[%clk 0:01:26.6]} 27. Nd6 {[%clk 0:01:59.2]} 27... Rc7 {[%clk 0:01:26.5]} 28.
Rab1 {[%clk 0:01:40.9]} 28... Ba8 {[%clk 0:01:24.5]} 29. Rb2 {[%clk 0:01:37]}
29... cxd4 {[%clk 0:01:21.7]} 30. cxd4 {[%clk 0:01:38.9]} 30... Rb8 {[%clk
0:01:11.1]} 31. Bg4 {[%clk 0:01:16.4]} 31... Ndf8 {[%clk 0:01:11.3]} 32. Rdb1
{[%clk 0:01:15.3]} 32... Qd7 {[%clk 0:01:09.2]} 33. Bd1 {[%clk 0:01:02.2]} 33...
Ne7 {[%clk 0:00:59.7]} 34. Qd3 {[%clk 0:00:52.6]} 34... Nd5 {[%clk 0:00:42.5]}
35. Rb5 {[%clk 0:00:41.7]} 35... Rc3 {[%clk 0:00:40.4]} 36. Qe4 {[%clk
0:00:25.1]} 36... Ng6 {[%clk 0:00:34.8]} 37. Qg4 {[%clk 0:00:22.2]} 37... Qc6
{[%clk 0:00:27.5]} 38. Bf3 {[%clk 0:00:19.2]} 38... Rc1+ {[%clk 0:00:27.5]} 39.
Rxc1 {[%clk 0:00:18.6]} 39... Qxc1+ {[%clk 0:00:29.4]} 40. Kh2 {[%clk 0:00:18]}
40... Kf8 {[%clk 0:00:24]} 41. Bxd5 {[%clk 0:00:18]} 41... Bxd5 {[%clk
0:00:24.7]} 42. Rxd5 {[%clk 0:00:19.1]} 42... exd5 {[%clk 0:00:24.2]} 43. Qd7
{[%clk 0:00:20.7]} 43... Ne7 {[%clk 0:00:22.5]} 44. e6 {[%clk 0:00:16]} 44...
Qxg5 {[%clk 0:00:13.6]} 45. Nxf7 {[%clk 0:00:13.6]} 45... Qh5+ {[%clk
0:00:14.1]} 46. Kg2 {[%clk 0:00:14.8]} 46... Re8 {[%clk 0:00:14.8]} 47. Bd6
{[%clk 0:00:11.2]} 47... Qg6+ {[%clk 0:00:14]} 48. Kf1 {[%clk 0:00:12.2]} 48...
Qd3+ {[%clk 0:00:14.3]} 49. Kg2 {[%clk 0:00:13.6]} 49... Qe4+ {[%clk 0:00:15.5]}
50. Kf1 {[%clk 0:00:14.1]} 50... Qd3+ {[%clk 0:00:14.7]} 51. Kg2 {[%clk
0:00:15.5]} 51... Qg6+ {[%clk 0:00:15.1]} 52. Kf1 {[%clk 0:00:16.4]} 52... Qd3+
{[%clk 0:00:10.8]} 53. Kg2 {[%clk 0:00:17.7]} 53... Qxd4 {[%clk 0:00:12.1]} 54.
Ne5 {[%clk 0:00:18.9]} 54... Qe4+ {[%clk 0:00:11.8]} 55. f3 {[%clk 0:00:19.3]}
55... Qc2+ {[%clk 0:00:12.2]} 56. Kg3 {[%clk 0:00:19.2]} 56... Qc8 {[%clk
0:00:04.7]} 57. Ng6+ {[%clk 0:00:19.6]} 57... Kg8 {[%clk 0:00:05.3]} 58. Nxe7+
{[%clk 0:00:18.6]} 1-0

[Event "*** Qualifier 4: Titled Tuesday 3|2 Blitz"]
[Site "Chess.com"]
[Date "2017.04.25"]
[Round "6"]
[White "Marcus_Harvey"]
[Black "GMHess"]
[Result "0-1"]
[WhiteElo "2505"]
[BlackElo "2570"]
[TimeControl "180+2"]
[EndTime "14:18:07 PDT"]
[Termination "GMHess won by resignation"]

1. e4 {[%clk 0:03:02]} 1... d6 {[%clk 0:02:54.2]} 2. d4 {[%clk 0:03:01.7]} 2...
Nf6 {[%clk 0:02:55.2]} 3. f3 {[%clk 0:03:02.6]} 3... c6 {[%clk 0:02:48.9]} 4.
Be3 {[%clk 0:03:00.9]} 4... Nbd7 {[%clk 0:02:47.1]} 5. c4 {[%clk 0:02:54.4]}
5... e5 {[%clk 0:02:47.4]} 6. d5 {[%clk 0:02:55.7]} 6... Be7 {[%clk 0:02:36.6]}
7. Nc3 {[%clk 0:02:55.5]} 7... O-O {[%clk 0:02:37.8]} 8. Bd3 {[%clk 0:02:54]}
8... cxd5 {[%clk 0:02:37.7]} 9. cxd5 {[%clk 0:02:52.9]} 9... a6 {[%clk
0:02:31.8]} 10. Nge2 {[%clk 0:02:47.3]} 10... Nh5 {[%clk 0:02:32.9]} 11. O-O
{[%clk 0:02:46]} 11... Bg5 {[%clk 0:02:33.2]} 12. Qd2 {[%clk 0:02:45.4]} 12...
h6 {[%clk 0:02:14.6]} 13. g4 {[%clk 0:02:39.5]} 13... Bxe3+ {[%clk 0:02:04.7]}
14. Qxe3 {[%clk 0:02:40.2]} 14... Nhf6 {[%clk 0:02:05.8]} 15. b4 {[%clk
0:02:37.8]} 15... Qb6 {[%clk 0:01:58]} 16. Qxb6 {[%clk 0:02:37.2]} 16... Nxb6
{[%clk 0:01:59.9]} 17. Rab1 {[%clk 0:02:08.4]} 17... Bd7 {[%clk 0:01:57.7]} 18.
Rfc1 {[%clk 0:02:05.7]} 18... Rfc8 {[%clk 0:01:54.6]} 19. Kf2 {[%clk 0:02:05.6]}
19... Kf8 {[%clk 0:01:38.7]} 20. a3 {[%clk 0:02:06.4]} 20... Ke7 {[%clk
0:01:38.8]} 21. Ke3 {[%clk 0:02:05.5]} 21... Nc4+ {[%clk 0:01:03.8]} 22. Bxc4
{[%clk 0:02:05.8]} 22... Rxc4 {[%clk 0:01:05.7]} 23. Nd1 {[%clk 0:02:06]} 23...
Rxc1 {[%clk 0:00:56.3]} 24. Rxc1 {[%clk 0:02:06.9]} 24... a5 {[%clk 0:00:57.9]}
25. bxa5 {[%clk 0:02:01.6]} 25... Rxa5 {[%clk 0:00:58]} 26. Rc3 {[%clk
0:02:03.1]} 26... Bb5 {[%clk 0:00:34.4]} 27. Nc1 {[%clk 0:02:03.4]} 27... Nd7
{[%clk 0:00:33.2]} 28. Nd3 {[%clk 0:01:59.2]} 28... Bxd3 {[%clk 0:00:27.3]} 29.
Kxd3 {[%clk 0:02:00.4]} 29... Nc5+ {[%clk 0:00:28.5]} 30. Kc2 {[%clk 0:02:01.7]}
30... b5 {[%clk 0:00:15.4]} 31. Ne3 {[%clk 0:01:54.7]} 31... g6 {[%clk
0:00:15.9]} 32. h4 {[%clk 0:01:54.8]} 32... Kd7 {[%clk 0:00:15.6]} 33. h5 {[%clk
0:01:55.4]} 33... Ra8 {[%clk 0:00:12.8]} 34. Kb1 {[%clk 0:01:48.6]} 34... Ke7
{[%clk 0:00:12.5]} 35. Kc2 {[%clk 0:01:26]} 35... Kf6 {[%clk 0:00:12.6]} 36. Kd1
{[%clk 0:01:21.6]} 36... Kg5 {[%clk 0:00:13.3]} 37. Ke2 {[%clk 0:01:20.5]} 37...
Ra6 {[%clk 0:00:06.8]} 38. Kf2 {[%clk 0:01:20.2]} 38... Kh4 {[%clk 0:00:05.2]}
39. Nc2 {[%clk 0:01:06.9]} 39... gxh5 {[%clk 0:00:05.6]} 40. gxh5 {[%clk
0:01:07.7]} 40... Kxh5 {[%clk 0:00:07.5]} 41. Kg3 {[%clk 0:01:07.8]} 41... f5
{[%clk 0:00:07.3]} 42. exf5 {[%clk 0:01:08.1]} 42... Kg5 {[%clk 0:00:08.6]} 43.
Ne3 {[%clk 0:01:05.6]} 43... h5 {[%clk 0:00:07.7]} 44. Kf2 {[%clk 0:00:47.5]}
44... Ra8 {[%clk 0:00:04.5]} 45. Ke2 {[%clk 0:00:45.9]} 45... h4 {[%clk
0:00:02.9]} 46. Rc1 {[%clk 0:00:44.6]} 46... Rxa3 {[%clk 0:00:02.3]} 47. Rg1+
{[%clk 0:00:46.1]} 47... Kf6 {[%clk 0:00:02.7]} 48. Rg6+ {[%clk 0:00:46.7]}
48... Ke7 {[%clk 0:00:03.8]} 49. Rg7+ {[%clk 0:00:48.1]} 49... Kf8 {[%clk
0:00:04.2]} 50. Rh7 {[%clk 0:00:46.8]} 50... Ra2+ {[%clk 0:00:04.7]} 51. Kd1
{[%clk 0:00:47.5]} 51... b4 {[%clk 0:00:04.6]} 52. Ng4 {[%clk 0:00:44.5]} 52...
b3 {[%clk 0:00:05.4]} 53. Rh8+ {[%clk 0:00:31.5]} 53... Kf7 {[%clk 0:00:05.3]}
54. Rb8 {[%clk 0:00:32.4]} 54... Ra1+ {[%clk 0:00:04.2]} 55. Kd2 {[%clk
0:00:33.8]} 55... h3 {[%clk 0:00:05.7]} 56. Rb6 {[%clk 0:00:25.6]} 56... h2
{[%clk 0:00:06.3]} 57. Nxh2 {[%clk 0:00:14.6]} 57... Ra2+ {[%clk 0:00:07.6]} 58.
Kc3 {[%clk 0:00:15.7]} 58... Rc2+ {[%clk 0:00:08.7]} 59. Kb4 {[%clk 0:00:16.4]}
59... Rxh2 {[%clk 0:00:10.3]} 60. Rxd6 {[%clk 0:00:16.8]} 60... b2 {[%clk
0:00:10.9]} 0-1

[Event "*** Qualifier 4: Titled Tuesday 3|2 Blitz"]
[Site "Chess.com"]
[Date "2017.04.25"]
[Round "6"]
[White "L3on4rdo"]
[Black "Gabrielian_Artur"]
[Result "1-0"]
[WhiteElo "2407"]
[BlackElo "2561"]
[TimeControl "180+2"]
[EndTime "14:18:12 PDT"]
[Termination "L3on4rdo won by resignation"]

1. Nf3 {[%clk 0:03:02]} 1... Nf6 {[%clk 0:02:58.2]} 2. g3 {[%clk 0:03:02.3]}
2... g6 {[%clk 0:02:59.4]} 3. b3 {[%clk 0:03:03.3]} 3... Bg7 {[%clk 0:03:00.4]}
4. Bb2 {[%clk 0:03:04.8]} 4... O-O {[%clk 0:03:02]} 5. Bg2 {[%clk 0:03:06.1]}
5... d6 {[%clk 0:03:03.4]} 6. d4 {[%clk 0:03:07.4]} 6... Nbd7 {[%clk 0:03:03.7]}
7. O-O {[%clk 0:03:03.9]} 7... Re8 {[%clk 0:03:05]} 8. c4 {[%clk 0:02:57.7]}
8... e5 {[%clk 0:03:02.6]} 9. dxe5 {[%clk 0:02:58.4]} 9... Ng4 {[%clk
0:03:03.8]} 10. Qd2 {[%clk 0:02:57.6]} 10... dxe5 {[%clk 0:03:03.8]} 11. Rd1
{[%clk 0:02:37.4]} 11... c6 {[%clk 0:02:57.1]} 12. e4 {[%clk 0:01:57.7]} 12...
Qc7 {[%clk 0:02:32.4]} 13. Nc3 {[%clk 0:01:52.3]} 13... Nc5 {[%clk 0:02:30]} 14.
h3 {[%clk 0:01:41.8]} 14... Nf6 {[%clk 0:02:24.7]} 15. b4 {[%clk 0:01:37]} 15...
Ncxe4 {[%clk 0:02:25.4]} 16. Nxe4 {[%clk 0:01:37.6]} 16... Nxe4 {[%clk
0:02:26.7]} 17. Qe3 {[%clk 0:01:07.5]} 17... f5 {[%clk 0:02:26.8]} 18. c5 {[%clk
0:01:06]} 18... Be6 {[%clk 0:02:26.2]} 19. g4 {[%clk 0:01:00]} 19... Bd5 {[%clk
0:02:20.1]} 20. gxf5 {[%clk 0:00:55.9]} 20... gxf5 {[%clk 0:02:20.7]} 21. Nh4
{[%clk 0:00:57.2]} 21... Qf7 {[%clk 0:02:21.6]} 22. Kh1 {[%clk 0:00:36.8]} 22...
f4 {[%clk 0:02:21.8]} 23. Qe2 {[%clk 0:00:35]} 23... Nf6 {[%clk 0:01:44.3]} 24.
Bxd5 {[%clk 0:00:21.5]} 24... Nxd5 {[%clk 0:01:42]} 25. Rg1 {[%clk 0:00:20.5]}
25... Kh8 {[%clk 0:01:40.5]} 26. Qe4 {[%clk 0:00:17.3]} 26... Re6 {[%clk
0:01:36.8]} 27. Nf3 {[%clk 0:00:18.1]} 27... Qh5 {[%clk 0:01:32.3]} 28. Kh2
{[%clk 0:00:04.2]} 28... Nf6 {[%clk 0:01:22.9]} 29. Qc4 {[%clk 0:00:05.3]} 29...
Rae8 {[%clk 0:01:12]} 30. Rxg7 {[%clk 0:00:04]} 30... Qxf3 {[%clk 0:01:08.8]}
31. Rag1 {[%clk 0:00:04.2]} 31... R6e7 {[%clk 0:00:43.8]} 32. Rxe7 {[%clk
0:00:03.1]} 32... Rxe7 {[%clk 0:00:45.2]} 33. Qf1 {[%clk 0:00:03.4]} 33... Ne4
{[%clk 0:00:21.5]} 34. Qg2 {[%clk 0:00:03.4]} 34... Qxg2+ {[%clk 0:00:22.1]} 35.
Rxg2 {[%clk 0:00:04.3]} 35... Nd2 {[%clk 0:00:21.9]} 36. Rg4 {[%clk 0:00:03.2]}
36... h5 {[%clk 0:00:19.5]} 37. Rxf4 {[%clk 0:00:04]} 37... Kh7 {[%clk
0:00:19.7]} 38. Rf5 {[%clk 0:00:04.5]} 38... Nc4 {[%clk 0:00:19.4]} 39. Bc1
{[%clk 0:00:04.7]} 39... Kg6 {[%clk 0:00:19]} 40. Rg5+ {[%clk 0:00:05.9]} 40...
Kf6 {[%clk 0:00:20.5]} 41. Rxh5 {[%clk 0:00:07.2]} 41... Rd7 {[%clk 0:00:22]}
42. h4 {[%clk 0:00:04.2]} 42... Rd1 {[%clk 0:00:22.7]} 43. Bg5+ {[%clk
0:00:05.3]} 43... Kf5 {[%clk 0:00:24.2]} 44. Rh7 {[%clk 0:00:05.5]} 44... Ra1
{[%clk 0:00:22.7]} 45. Rxb7 {[%clk 0:00:04.5]} 45... Rxa2 {[%clk 0:00:22.6]} 46.
Kg3 {[%clk 0:00:06]} 46... Ra3+ {[%clk 0:00:22]} 47. Kg2 {[%clk 0:00:05.1]}
47... e4 {[%clk 0:00:21.3]} 48. Rf7+ {[%clk 0:00:05.4]} 48... Ke6 {[%clk
0:00:21.8]} 49. Rf6+ {[%clk 0:00:06]} 49... Ke5 {[%clk 0:00:23.1]} 50. Rxc6
{[%clk 0:00:06.5]} 50... Ra2 {[%clk 0:00:21.3]} 51. Kg3 {[%clk 0:00:05.3]} 51...
Ra3+ {[%clk 0:00:15.5]} 52. Kg2 {[%clk 0:00:05.3]} 52... Ra2 {[%clk 0:00:16.6]}
53. Kg3 {[%clk 0:00:04.6]} 53... Ra3+ {[%clk 0:00:17.6]} 54. Kg4 {[%clk
0:00:06.1]} 54... Ra1 {[%clk 0:00:17.9]} 55. Bf6+ {[%clk 0:00:04.2]} 55... Kd5
{[%clk 0:00:19.1]} 56. Bxa1 {[%clk 0:00:05.2]} 56... Kxc6 {[%clk 0:00:20.5]} 57.
h5 {[%clk 0:00:06.6]} 57... e3 {[%clk 0:00:21.5]} 58. fxe3 {[%clk 0:00:07.3]}
58... Nxe3+ {[%clk 0:00:22.9]} 59. Kg5 {[%clk 0:00:08.9]} 59... Nc2 {[%clk
0:00:22.4]} 60. Bc3 {[%clk 0:00:08.5]} 60... a5 {[%clk 0:00:22.7]} 61. bxa5
{[%clk 0:00:09.3]} 61... Kxc5 {[%clk 0:00:24.2]} 62. h6 {[%clk 0:00:10.8]} 62...
Ne1 {[%clk 0:00:23.3]} 63. Bxe1 {[%clk 0:00:10.7]} 1-0